bitfinex/quotes_ETHUSD_20220226
["timestamp","ask_amount","ask_price","bid_price","bid_amount"]
[1645868409162,2.49152993,2761.2,2761.1,5.10573283]
[1645868409361,0.6636,2761.2,2761.1,5.10573283]
[1645868410766,2.49152993,2761.2,2761.1,5.10573283]
[1645868411568,0.6636,2761.2,2761.1,5.10573283]
[1645868412820,0.3,2761.2,2761.1,5.10573283]
[1645868413418,3.49152993,2761.3,2761.1,5.10573283]
[1645868413621,2.49152993,2761.3,2761.1,5.10573283]
[1645868413821,3.49152993,2761.3,2761.1,5.10573283]
[1645868414019,2.49460946,2761.3,2761.1,5.10573283]
[1645868414222,3.49460946,2761.3,2761.1,5.10573283]
[1645868414422,2.13100946,2761.3,2761.1,5.10573283]
[1645868414621,3.13100946,2761.3,2761.1,5.10573283]
[1645868414823,2.13100946,2761.3,2761.1,5.10573283]
[1645868415021,3.12792993,2761.3,2761.1,5.10573283]
[1645868415223,2.13245457,2761.3,2761.1,5.10573283]
[1645868415422,3.13245457,2761.3,2761.1,5.10573283]
[1645868416262,3.12792993,2761.3,2761.1,5.10573283]
[1645868416464,1.37423033,2761.2,2761.1,5.10573283]
[1645868416665,1.37106644,2761.2,2761.1,5.10573283]
[1645868417467,1.6,2761.3,2761.1,5.10573283]
[1645868417669,0.60452466,2761.3,2761.1,5.10573283]
[1645868417869,0.00452466,2761.3,2761.1,5.10573283]
[1645868418066,0.36812466,2761.3,2761.1,5.10573283]
[1645868418369,0.3636,2761.2,2761.1,5.10573283]
[1645868419368,0.30452464,2761.3,2761.1,5.10573283]
[1645868419568,3.09764993,2761.2,2761.1,5.10573283]
[1645868419768,6.59764993,2761.2,2761.1,5.10573283]
[1645868420031,4.09764993,2761.2,2761.1,5.10573283]
[1645868420220,4.09764993,2761.2,2761.1,2.94036755]
[1645868420418,7.59764993,2761.2,2761.1,2.94036755]
[1645868420619,2.26972,2761.2,2761.1,2.94036755]
[1645868420824,4.76972,2761.2,2761.1,2.94036755]
[1645868421323,5.76972,2761.2,2761.1,2.94036755]
[1645868421619,6.29272,2761.2,2761.1,2.94036755]
[1645868421820,2.79272,2761.2,2761.1,2.94036755]
[1645868422020,1.79272,2761.2,2761.1,2.94036755]
[1645868422220,4.62467635,2761.2,2761.1,2.94036755]
[1645868422423,3.62467635,2761.2,2761.1,2.94036755]
[1645868422620,4.62467635,2761.2,2761.1,2.94036755]
[1645868423624,2.79272,2761.2,2761.1,2.94036755]
[1645868423854,2.71831445,2761.2,2761.1,2.94036755]
[1645868424054,2.35471272,2761.2,2761.1,2.94036755]
[1645868424257,1.83605389,2761.6,2761.1,2.94036755]
[1645868424457,0.91569893,2761.2,2761.1,2.94036755]
[1645868424661,0.91569377,2761.2,2761.1,2.94036755]
[1645868425259,0.00434117,2761.6,2761.1,2.94036755]
[1645868425260,1.37355275,2761.4,2761.1,2.94036755]
[1645868425459,1.37355275,2761.3,2761.1,2.94036755]
[1645868426062,3.5,2761.2,2761.1,0.4439536]
[1645868426268,10.29274,2761.2,2761.1,0.4439536]
[1645868426462,10.29274,2761.2,2760.3,0.1448]
[1645868426463,0.3636,2761.0,2760.3,0.1448]
[1645868426662,1.37386311,2760.5,2760.3,0.1448]
[1645868426861,1.67386311,2760.5,2760.3,0.1448]
[1645868427062,5.23746311,2760.4,2760.3,0.1448]
[1645868427265,7.66689311,2760.4,2759.5,1.4051]
[1645868427522,7.66689311,2760.4,2759.5,1.1551]
[1645868427523,0.91599768,2760.1,2759.5,1.1551]
[1645868427710,1.21599768,2760.1,2759.5,1.1551]
[1645868428009,0.3,2760.1,2759.5,1.1551]
[1645868428610,1.73899768,2760.2,2759.5,1.1551]
[1645868428818,0.90645,2760.1,2759.5,1.1551]
[1645868429015,0.90645,2760.1,2759.3,1.05211264]
[1645868429314,3.24352815,2760.2,2759.4,1.53177118]
[1645868429516,5.78033311,2760.4,2759.4,1.89537118]
[1645868429517,0.91599768,2760.3,2759.4,1.89537118]
[1645868429719,0.3,2760.3,2759.5,1.89537118]
[1645868429918,0.3,2760.3,2759.6,1.53177118]
[1645868430120,2.21599768,2760.5,2759.6,1.53177118]
[1645868430320,0.91599768,2760.4,2759.5,1.53177118]
[1645868430925,0.91599768,2760.4,2759.8,0.00453125]
[1645868431766,0.91599768,2760.4,2759.4,1.154]
[1645868431966,0.91599768,2760.4,2759.5,1.53164707]
[1645868432166,0.91599768,2760.4,2760.0,0.00453117]
[1645868432968,0.91599768,2760.4,2759.4,1.154]
[1645868433168,0.91599768,2760.4,2759.5,1.53164813]
[1645868433368,0.91599768,2760.4,2760.1,0.00453112]
[1645868433972,0.9423384,2760.4,2760.1,0.00453112]
[1645868434369,0.02634072,2760.4,2759.4,1.154]
[1645868434569,0.9423384,2760.4,2760.1,0.00453116]
[1645868435509,0.9423384,2760.4,2759.4,1.154]
[1645868435710,0.9423384,2760.4,2760.1,0.00453116]
[1645868436314,0.02634072,2760.4,2760.1,0.00453116]
[1645868436714,0.02634072,2760.4,2759.5,0.3636]
[1645868436915,0.02634072,2760.4,2760.1,0.00453116]
[1645868437514,0.93270072,2760.4,2760.1,0.00453116]
[1645868437717,1.8486984,2760.4,2760.1,0.00453116]
[1645868437915,1.8486984,2760.4,2759.4,1.154]
[1645868438115,0.91599768,2760.3,2760.1,0.00453116]
[1645868438316,1.21599768,2760.3,2760.1,0.00453116]
[1645868438515,1.38071873,2760.3,2760.1,0.00453116]
[1645868438973,1.38071873,2760.3,2759.4,1.154]
[1645868439371,1.38071873,2760.3,2760.1,0.00453112]
[1645868439773,0.3,2760.3,2760.1,0.00453112]
[1645868440172,1.21599768,2760.3,2760.1,0.00453112]
[1645868440375,1.21599768,2760.3,2759.4,1.154]
[1645868440572,1.21599768,2760.3,2760.1,0.00453112]
[1645868440573,0.3,2760.3,2760.1,0.00453112]
[1645868440971,2.8486984,2760.4,2760.1,0.00453112]
[1645868440972,3.1486984,2760.4,2760.1,0.00453112]
[1645868441172,2.1486984,2760.4,2760.1,0.00453112]
[1645868441373,0.91599768,2760.3,2759.4,1.154]
[1645868441973,0.91599768,2760.3,2760.1,0.00439686]
[1645868442616,0.91599768,2760.3,2759.4,1.154]
[1645868443017,0.91599768,2760.3,2760.1,0.00439682]
[1645868443819,0.91599768,2760.3,2759.4,1.154]
[1645868444320,0.91599768,2760.3,2760.1,0.00439682]
[1645868444520,2.4486984,2760.4,2760.1,0.00439682]
[1645868444717,2.1486984,2760.4,2760.1,0.00439682]
[1645868444919,0.32634072,2760.4,2760.1,0.00439682]
[1645868445118,0.32634072,2760.4,2759.4,1.154]
[1645868445322,0.32634072,2760.4,2760.1,0.00453116]
[1645868445721,0.3,2760.3,2760.1,0.00453116]
[1645868446120,0.02634072,2760.4,2760.1,0.00453116]
[1645868446361,0.02634072,2760.4,2759.4,1.154]
[1645868446558,0.02634072,2760.4,2760.1,0.00453112]
[1645868447560,0.02634072,2760.4,2759.9,1.14520252]
[1645868447760,0.9423384,2760.4,2760.1,0.00453116]
[1645868448566,0.9423384,2760.4,2759.4,1.154]
[1645868448770,0.9423384,2760.4,2759.5,1.53162096]
[1645868448966,0.9423384,2760.4,2760.1,0.00453116]
[1645868449366,0.9423384,2760.4,2760.1,0.00339841]
[1645868450024,0.9423384,2760.4,2759.9,1.11546447]
[1645868450411,0.9423384,2760.4,2759.6,0.3636]
[1645868450614,0.9423384,2760.4,2759.7,1.53157311]
[1645868450813,0.9423384,2760.4,2759.5,0.5085]
[1645868451012,0.9423384,2760.4,2759.6,1.53158016]
[1645868451614,0.9423384,2760.4,2759.9,1.38588862]
[1645868452119,0.02634072,2760.4,2759.9,1.38588862]
[1645868452716,0.02634072,2760.4,2759.7,1.2131]
[1645868452915,0.02634072,2760.4,2759.8,1.53154503]
[1645868453759,0.02634072,2760.4,2760.0,0.00422959]
[1645868454666,0.02634072,2760.4,2759.9,1.2806567]
[1645868454869,0.02634072,2760.4,2760.1,0.00422953]
[1645868455863,0.02634072,2760.4,2759.7,1.2131]
[1645868456062,0.02634072,2760.4,2760.1,0.00422952]
[1645868457062,0.02634072,2760.4,2759.7,1.2131]
[1645868457366,0.02634072,2760.4,2759.8,1.53149576]
[1645868458012,0.02634072,2760.4,2760.0,1.10544757]
[1645868458416,0.02480293,2760.4,2760.0,1.10544757]
[1645868458617,0.02480293,2760.4,2760.0,1.10964578]
[1645868459420,0.02480293,2760.4,2760.0,1.10544757]
[1645868460023,0.02480293,2760.4,2760.1,0.00419816]
[1645868460622,0.02480293,2760.4,2759.7,1.2131]
[1645868461023,0.02480293,2760.4,2760.1,0.00419814]
[1645868461860,0.02480293,2760.4,2759.7,1.2131]
[1645868462061,0.02480293,2760.4,2760.1,0.00420003]
[1645868462860,0.02480293,2760.4,2760.3,1.23069668]
[1645868463063,0.02480293,2760.4,2759.9,3.2398]
[1645868463263,0.02480293,2760.4,2760.0,1.53141436]
[1645868463466,0.02480293,2760.4,2760.1,0.00385686]
[1645868464369,0.02480293,2760.4,2760.0,1.53141436]
[1645868464569,0.02480293,2760.4,2760.1,0.00385686]
[1645868465408,0.02480293,2760.4,2760.0,1.53141436]
[1645868465808,0.02480293,2760.4,2760.1,0.00385686]
[1645868466613,0.02480293,2760.4,2760.0,1.53141436]
[1645868467013,0.02480293,2760.4,2760.1,0.00385686]
[1645868467816,0.02480293,2760.4,2760.0,1.53141436]
[1645868468217,0.02480293,2760.4,2760.1,0.00394497]
[1645868469161,0.02480293,2760.4,2760.0,1.53141436]
[1645868469361,0.02480293,2760.4,2760.1,0.00394497]
[1645868470369,0.02480293,2760.4,2760.0,1.53141436]
[1645868470570,0.02480293,2760.4,2760.1,0.00394497]
[1645868471567,0.02480293,2760.4,2760.0,1.53141436]
[1645868471768,0.02480293,2760.4,2760.1,0.00392515]
[1645868472806,0.02480293,2760.4,2760.0,1.53141436]
[1645868473011,0.02480293,2760.4,2760.1,0.00392515]
[1645868473410,0.94080061,2760.4,2760.1,0.00392515]
[1645868473614,0.02480293,2760.4,2760.1,0.00392515]
[1645868473811,0.02480293,2760.4,2760.0,1.53141436]
[1645868474312,0.02480293,2760.4,2760.1,0.00392515]
[1645868475114,0.02480293,2760.4,2760.0,1.53141436]
[1645868475314,0.02480293,2760.4,2760.1,0.00392961]
[1645868475518,0.94080061,2760.4,2760.1,0.00392961]
[1645868476257,0.94080061,2760.4,2760.0,1.53141436]
[1645868476458,0.94080061,2760.4,2760.1,0.00392961]
[1645868476859,0.02480293,2760.4,2760.1,0.00392961]
[1645868477463,0.02480293,2760.4,2760.0,1.53141436]
[1645868477762,0.02480293,2760.4,2760.1,0.00392961]
[1645868478666,0.02480293,2760.4,2760.0,1.53141436]
[1645868478867,0.02480293,2760.4,2760.1,0.0039286]
[1645868479767,0.02480293,2760.4,2760.1,0.00234628]
[1645868480017,0.02480293,2760.4,2760.0,1.53141436]
[1645868480212,0.02480293,2760.4,2760.1,0.0039286]
[1645868481011,0.02480293,2760.4,2760.0,1.53141436]
[1645868482614,0.02480293,2760.4,2760.0,1.53259307]
[1645868483414,0.02480293,2760.4,2760.0,1.53141436]
[1645868483615,0.94080061,2760.4,2760.0,1.53141436]
[1645868483875,0.94080061,2760.4,2760.0,1.53533943]
[1645868484476,0.74776719,2760.4,2760.0,1.53533943]
[1645868484677,0.74776719,2760.4,2760.0,1.53141436]
[1645868485177,0.74776719,2760.4,2760.0,1.53533943]
[1645868485977,0.74776719,2760.4,2760.0,1.53141436]
[1645868486177,0.74776719,2760.4,2760.0,1.53534028]
[1645868487076,0.74776719,2760.4,2760.0,1.53141436]
[1645868487516,0.74776719,2760.4,2760.0,1.53534028]
[1645868488119,0.00426221,2760.6,2760.0,1.53534028]
[1645868488319,1.37386311,2760.7,2760.0,1.53141436]
[1645868488516,0.00392117,2760.6,2760.0,1.53533637]
[1645868489525,1.37386311,2760.7,2760.0,1.53141436]
[1645868489719,1.67778432,2760.6,2760.0,1.53533641]
[1645868489920,1.67778432,2760.6,2760.0,1.53826309]
[1645868490122,1.67778432,2760.6,2760.0,0.00392205]
[1645868490320,1.67778432,2760.6,2760.0,1.53541745]
[1645868490521,0.30392121,2760.6,2760.0,1.53541745]
[1645868490824,1.67386311,2760.7,2760.2,1.2585836]
[1645868491021,0.00392121,2760.6,2760.2,1.2585836]
[1645868491856,1.67386311,2760.7,2760.2,1.2585836]
[1645868492256,0.00392131,2760.6,2760.2,1.2585836]
[1645868492856,0.00392131,2760.6,2760.3,1.53132193]
[1645868493058,1.37386311,2760.9,2760.3,5.03132193]
[1645868493255,0.00434117,2761.1,2760.3,1.53132193]
[1645868493256,1.37386311,2761.0,2760.3,1.53132193]
[1645868493461,6.322e-05,2760.6,2760.4,5.03132193]
[1645868493757,6.322e-05,2760.6,2760.2,1.2585836]
[1645868493758,6.322e-05,2760.6,2760.5,1.53132193]
[1645868493959,6.322e-05,2760.6,2760.5,12.27622193]
[1645868494360,0.91695496,2761.0,2760.5,12.27622193]
[1645868494560,0.91695496,2761.0,2760.6,1.53132193]
[1645868496420,0.91695496,2761.1,2760.7,1.44239961]
[1645868496620,0.91695496,2761.0,2760.7,1.44239961]
[1645868496920,0.00452713,2760.9,2760.7,1.44239961]
[1645868497720,0.92148209,2760.9,2760.7,1.44239961]
[1645868497920,0.91695496,2760.9,2760.7,1.44239961]
[1645868498120,0.00452713,2760.9,2760.7,1.44239961]
[1645868499160,0.91695496,2761.0,2760.7,1.44239961]
[1645868499660,0.00452713,2760.9,2760.7,1.44239961]
[1645868500260,0.91695496,2761.1,2760.7,1.44239961]
[1645868500462,0.00452713,2760.9,2760.7,1.44239961]
[1645868501561,0.91695496,2761.1,2760.7,1.44239961]
[1645868501761,0.83093071,2761.1,2760.8,7.0]
[1645868502161,0.83093071,2761.1,2760.7,1.44239961]
[1645868502625,2.67820428,2761.3,2760.7,1.44239961]
[1645868502823,1.67386311,2761.3,2760.7,1.44239961]
[1645868503024,2.67386311,2761.3,2760.7,1.44239961]
[1645868503224,1.37386311,2761.2,2760.7,1.44239961]
[1645868504724,1.37386311,2761.2,2760.5,7.2449]
[1645868505327,0.00452702,2761.0,2760.5,7.24942796]
[1645868505728,0.00452702,2761.0,2760.7,1.29479533]
[1645868506127,0.00452702,2761.0,2760.5,7.24942796]
[1645868506362,1.67386311,2761.1,2760.5,7.2449]
[1645868506563,0.00452702,2761.0,2760.5,7.24942796]
[1645868507263,1.37839013,2761.0,2760.5,7.24942796]
[1645868507463,1.37386311,2761.0,2760.5,7.2449]
[1645868507864,1.37839002,2761.0,2760.5,7.24942785]
[1645868508364,1.74199002,2761.0,2760.5,7.24942785]
[1645868508765,1.74199002,2761.0,2760.5,7.2449]
[1645868508766,0.3636,2761.0,2760.5,7.2449]
[1645868508969,1.74199002,2761.0,2760.5,7.24942785]
[1645868509168,0.3636,2760.7,2760.5,7.24942785]
[1645868509469,0.3636,2760.6,2760.5,7.24942785]
[1645868509668,2.03746311,2760.6,2760.5,7.24942785]
[1645868509867,0.6636,2760.6,2760.5,7.2449]
[1645868510713,1.5699,2760.6,2760.5,7.2449]
[1645868511119,2.94376311,2760.6,2760.5,7.2449]
[1645868511315,3.94376311,2760.6,2760.5,7.2449]
[1645868511714,2.5699,2760.6,2760.5,7.2449]
[1645868512117,1.5699,2760.6,2760.5,7.2449]
[1645868512313,2.5699,2760.6,2760.5,7.2449]
[1645868512517,2.0929,2760.6,2760.5,7.2449]
[1645868512716,3.0929,2760.6,2760.5,7.2449]
[1645868512916,2.0929,2760.6,2760.5,7.2449]
[1645868513116,3.0929,2760.6,2760.5,7.2449]
[1645868513317,3.46676311,2760.6,2760.5,7.2449]
[1645868513516,4.63129188,2760.6,2760.5,7.2449]
[1645868514384,3.25742877,2760.6,2760.5,7.2449]
[1645868514787,2.35112877,2760.6,2760.5,7.2449]
[1645868515186,1.35112877,2760.6,2760.5,7.2449]
[1645868517088,1.35112877,2760.6,2760.5,6.9949]
[1645868517912,3.63125188,2760.6,2760.5,6.9949]
[1645868518112,2.25738877,2760.6,2760.5,6.9949]
[1645868518312,3.25738877,2760.6,2760.5,6.9949]
[1645868518520,2.25738877,2760.6,2760.5,6.9949]
[1645868518717,3.25738877,2760.6,2760.5,6.9949]
[1645868518917,2.25738877,2760.6,2760.5,6.9949]
[1645868519117,4.63049344,2760.6,2760.5,6.9949]
[1645868521269,11.75738877,2760.6,2760.5,4.54424173]
[1645868521469,13.58666119,2760.6,2760.5,4.54424173]
[1645868522269,11.75738877,2760.6,2760.5,4.54424173]
[1645868522469,8.25738877,2760.6,2760.5,4.54424173]
[1645868522669,3.25738877,2760.6,2760.5,4.54424173]
[1645868523069,2.25738877,2760.6,2760.5,4.54424173]
[1645868523268,3.25738877,2760.6,2760.5,4.54424173]
[1645868523468,2.25738877,2760.6,2760.5,4.54424173]
[1645868523669,4.63001908,2760.6,2760.5,4.54424173]
[1645868530163,4.26641908,2760.6,2760.5,4.54424173]
[1645868531367,2.89378877,2760.6,2760.5,4.54424173]
[1645868531963,6.39378877,2760.6,2760.5,4.54424173]
[1645868532165,5.39378877,2760.6,2760.5,4.54424173]
[1645868532363,6.39378877,2760.6,2760.5,4.54424173]
[1645868533014,8.22306119,2760.6,2760.5,4.54424173]
[1645868533209,6.39378877,2760.6,2760.5,4.54424173]
[1645868533610,6.37565409,2760.6,2760.5,4.54424173]
[1645868534616,9.51388014,2760.6,2760.5,4.54424173]
[1645868536461,9.51388014,2760.6,2760.5,2.94763257]
[1645868537061,6.01388014,2760.6,2760.5,2.94763257]
[1645868537469,9.51388014,2760.6,2760.5,2.94763257]
[1645868538662,6.01388014,2760.6,2760.5,2.94763257]
[1645868539167,22.9136279,2760.6,2760.5,2.94763257]
[1645868539367,22.9136279,2760.6,2760.4,0.00420976]
[1645868539368,18.05,2760.5,2760.4,0.00420976]
[1645868539666,33.85407196,2760.5,2760.4,0.00420976]
[1645868539865,33.85407196,2760.5,2759.9,0.00292668]
[1645868539866,11.05,2760.3,2759.9,0.00292668]
[1645868540112,11.05,2760.3,2759.6,0.00292668]
[1645868540113,2.2774407,2760.0,2759.6,0.00292668]
[1645868540309,2.2774407,2760.0,2759.3,0.00292668]
[1645868540310,0.91388345,2759.7,2759.3,0.00292668]
[1645868540513,0.523,2759.6,2759.3,0.00292668]
[1645868540809,0.523,2759.5,2759.2,1.3386]
[1645868541019,0.823,2759.5,2759.2,1.3386]
[1645868541221,0.823,2759.5,2759.2,0.1449]
[1645868541617,0.823,2759.5,2758.8,1.22402668]
[1645868541618,1.03683822,2759.5,2759.0,0.1449]
[1645868542519,1.03683822,2759.5,2759.1,0.00145241]
[1645868543317,4.40665,2759.4,2759.1,0.00145241]
[1645868543517,0.523,2759.3,2759.0,0.1449]
[1645868543764,0.823,2759.3,2759.2,0.00452837]
[1645868543968,1.00831481,2759.3,2759.2,0.00452837]
[1645868544567,1.92219826,2759.3,2759.2,0.00452837]
[1645868544769,1.92219826,2759.3,2758.9,0.00298137]
[1645868544967,1.92219826,2759.3,2759.1,0.00145347]
[1645868545169,1.00831481,2759.3,2759.1,0.00145347]
[1645868545372,1.91509481,2759.3,2759.1,0.00145347]
[1645868545771,2.21509481,2759.3,2759.1,0.00145347]
[1645868545969,3.12897826,2759.3,2758.8,1.22408137]
[1645868546170,0.90675,2759.1,2758.8,0.97553486]
[1645868546370,1.42975,2759.1,2758.8,0.97255349]
[1645868546569,1.42975,2759.1,2758.7,4.37350034]
[1645868546770,1.72975,2759.1,2758.7,4.37350034]
[1645868551020,1.72975,2759.1,2758.8,0.0045328]
[1645868551871,1.72975,2759.1,2758.7,4.37350034]
[1645868552272,1.72975,2759.1,2758.8,0.00453277]
[1645868553177,1.72975,2759.1,2758.7,4.37350034]
[1645868553374,1.72975,2759.1,2758.8,0.00453277]
[1645868554375,1.72975,2759.1,2758.7,4.37350034]
[1645868554574,1.72975,2759.1,2758.8,0.00145277]
[1645868555615,1.72975,2759.1,2758.7,4.37350034]
[1645868555817,1.72975,2759.1,2758.8,0.00145277]
[1645868556714,1.72975,2759.1,2758.7,4.37350034]
[1645868556914,1.72975,2759.1,2758.8,0.00453722]
[1645868557914,1.72975,2759.1,2758.7,4.37350034]
[1645868558320,1.72975,2759.1,2758.8,0.00453722]
[1645868559163,1.72975,2759.1,2758.7,2.9593]
[1645868559564,1.72975,2759.1,2758.8,0.00453722]
[1645868560263,1.72975,2759.1,2758.7,2.9593]
[1645868560666,1.72975,2759.1,2758.8,0.00453722]
[1645868561569,1.72975,2759.1,2758.8,1.43770081]
[1645868561771,1.72975,2759.1,2758.8,0.00453722]
[1645868562719,1.72975,2759.1,2758.7,2.9593]
[1645868562919,1.72975,2759.1,2758.8,1.0488354]
[1645868563119,1.72975,2759.1,2758.8,0.00453722]
[1645868563924,1.72975,2759.1,2758.7,2.9593]
[1645868564121,1.72975,2759.1,2758.8,0.00453722]
[1645868565121,1.72975,2759.1,2758.7,4.23911325]
[1645868565321,1.72975,2759.1,2758.8,0.00453722]
[1645868566369,1.72975,2759.1,2758.7,3.97985798]
[1645868566569,0.90666,2759.4,2758.8,0.00453722]
[1645868566769,0.91388345,2759.6,2758.8,0.00453722]
[1645868567174,2.72720345,2759.7,2758.8,3.50751859]
[1645868567376,0.91388345,2759.6,2758.8,0.00751859]
[1645868567575,0.91388345,2759.6,2758.8,0.00298137]
[1645868567774,0.90662,2759.5,2759.1,0.00453706]
[1645868568579,2.12050345,2759.5,2759.1,0.00453706]
[1645868568783,0.00116506,2759.1,2758.8,1.25976082]
[1645868568979,0.00116506,2759.1,2758.8,1.25677945]
[1645868570321,0.00116506,2759.1,2758.8,1.26131667]
[1645868571128,0.00116506,2759.1,2758.8,1.25677945]
[1645868571331,0.00116506,2759.1,2758.8,1.26131667]
[1645868572329,0.00116506,2759.1,2758.8,1.25677945]
[1645868573864,0.00116506,2759.1,2758.8,1.26006922]
[1645868574668,0.00116506,2759.1,2758.8,1.25553522]
[1645868574865,0.00116506,2759.1,2758.7,4.1576]
[1645868575068,0.00116506,2759.1,2758.8,0.004534]
[1645868575267,1.30379511,2759.4,2758.8,0.004534]
[1645868575873,1.30379511,2759.4,2758.7,4.16058137]
[1645868576068,0.90671,2759.3,2758.8,1.34132685]
[1645868576269,1.20671,2759.3,2759.0,0.00453392]
[1645868576474,1.37163279,2759.3,2759.0,0.00453392]
[1645868577070,1.37163279,2759.3,2758.8,1.34430822]
[1645868577269,0.3,2759.3,2758.8,1.34430822]
[1645868577510,0.3,2759.3,2759.0,0.0045339]
[1645868577711,0.3,2759.4,2759.0,0.0045339]
[1645868577912,0.3,2759.5,2759.0,0.0045339]
[1645868578312,4.1004207,2759.6,2758.8,1.34430822]
[1645868578515,4.1004207,2759.6,2759.1,0.00453384]
[1645868578712,0.3636,2759.5,2759.1,0.00453384]
[1645868579118,0.8866,2759.5,2759.1,0.00453384]
[1645868579516,0.8866,2759.5,2758.8,0.00298137]
[1645868579822,0.90672,2759.2,2758.8,0.00298137]
[1645868580016,0.90672,2759.2,2758.7,4.1576]
[1645868580418,0.90672,2759.2,2758.9,1.27135676]
[1645868580619,0.90672,2759.2,2758.7,4.16058137]
[1645868580817,0.90672,2759.2,2758.7,4.1576]
[1645868581017,0.90672,2759.2,2758.9,0.00453395]
[1645868581862,0.90672,2759.2,2759.0,1.02777336]
[1645868583467,0.90672,2759.2,2759.0,1.03230728]
[1645868584267,0.90672,2759.2,2759.0,1.02777336]
[1645868584669,0.90672,2759.2,2759.0,1.03230728]
[1645868584870,0.90672,2759.2,2759.0,0.00453392]
[1645868585110,2.2775307,2759.2,2759.0,0.00453392]
[1645868585512,2.2775307,2759.2,2758.7,4.16058137]
[1645868585720,0.91771928,2759.0,2758.7,5.46551023]
[1645868585918,1.21771928,2759.0,2758.7,2.9593]
[1645868586319,1.21771928,2759.0,2758.6,3.2745]
[1645868586521,1.21771928,2759.0,2758.7,1.53222286]
[1645868586922,1.21771928,2759.0,2758.7,1.53675694]
[1645868586923,0.91771928,2758.9,2758.7,1.53675694]
[1645868587123,0.91771928,2758.9,2758.7,0.00453408]
[1645868587320,1.21771928,2758.9,2758.7,0.00453408]
[1645868587519,0.91771928,2758.9,2758.7,0.00453408]
[1645868587719,0.3,2759.0,2758.8,1.53220883]
[1645868587920,0.91771928,2759.1,2758.8,1.53220883]
[1645868587921,1.21771928,2759.1,2758.8,1.53220883]
[1645868588120,1.21771928,2759.1,2759.0,1.11649856]
[1645868589369,1.21771928,2759.1,2758.5,0.00298137]
[1645868589370,1.21771928,2759.1,2758.9,0.00453395]
[1645868590372,1.21771928,2759.1,2758.8,1.37018483]
[1645868590572,1.21771928,2759.1,2758.9,0.00418396]
[1645868591581,1.21771928,2759.1,2758.8,1.37018483]
[1645868591774,1.21771928,2759.1,2758.9,1.53632635]
[1645868591974,1.21771928,2759.1,2758.9,0.00418396]
[1645868592814,1.21771928,2759.1,2758.8,1.37018483]
[1645868593018,1.21771928,2759.1,2758.9,1.53631901]
[1645868593217,1.21771928,2759.1,2758.9,0.00418396]
[1645868594023,1.21771928,2759.1,2758.8,1.37018483]
[1645868594024,0.91771928,2759.0,2758.8,1.37018483]
[1645868594223,0.91771928,2759.0,2758.9,0.00418396]
[1645868594825,1.51771928,2759.1,2758.9,1.53632982]
[1645868595024,1.51771928,2759.1,2758.9,0.00418396]
[1645868595225,1.21771928,2759.1,2758.8,1.37018483]
[1645868595425,1.21771928,2759.1,2758.9,1.53634893]
[1645868595626,1.21771928,2759.1,2758.9,0.00420736]
[1645868596125,1.21771928,2759.1,2758.8,0.37439219]
[1645868596564,0.91771928,2759.1,2758.8,0.37439219]
[1645868596767,2.3708107,2759.3,2758.9,1.53215537]
[1645868596768,0.91771928,2759.3,2758.9,1.53215537]
[1645868596966,1.91771928,2759.3,2758.9,5.03215537]
[1645868597167,1.0,2759.5,2759.0,1.53215537]
[1645868597168,0.91771928,2759.4,2759.0,1.53215537]
[1645868597373,0.91771928,2759.5,2759.0,1.89575537]
[1645868597569,0.91771928,2759.6,2759.5,1.39734869]
[1645868599575,0.91771928,2759.7,2759.5,1.39734869]
[1645868600519,2.20653,2759.8,2759.6,3.5]
[1645868600520,0.91771928,2759.8,2759.6,3.5]
[1645868600719,0.91771928,2759.9,2759.6,3.5]
[1645868600919,0.91771928,2760.0,2759.5,1.39734869]
[1645868601318,0.91771928,2760.0,2759.6,1.53170654]
[1645868601521,1.3708107,2760.3,2759.5,1.39734869]
[1645868601522,0.91771928,2760.1,2759.5,1.39734869]
[1645868601821,0.91771928,2760.0,2759.5,1.39734869]
[1645868602220,0.91771928,2759.8,2759.5,1.39734869]
[1645868602619,1.3708107,2760.1,2759.6,0.3636]
[1645868602620,0.91771928,2760.0,2759.6,0.3636]
[1645868603422,0.91771928,2760.0,2759.5,1.39734869]
[1645868603625,0.91771928,2760.0,2759.3,1.1891]
[1645868603875,0.91771928,2759.9,2759.3,1.1891]
[1645868604774,0.91771928,2759.9,2759.5,1.25989082]
[1645868612774,0.3,2760.0,2759.3,1.1891]
[1645868612775,0.91771928,2759.8,2759.3,1.1891]
[1645868613176,1.21771928,2759.8,2759.3,1.1891]
[1645868613774,0.91771928,2759.7,2759.3,1.1891]
[1645868613974,0.91771928,2759.7,2759.1,0.00298137]
[1645868613975,0.91771928,2759.5,2759.1,0.00298137]
[1645868614175,1.28131928,2759.4,2759.2,7.2482]
[1645868614375,1.58131928,2759.4,2759.2,7.2482]
[1645868614575,1.44071928,2759.3,2759.2,7.2482]
[1645868615026,0.523,2759.3,2759.2,7.2482]
[1645868618032,0.523,2759.3,2759.2,7.24689929]
[1645868621973,0.43240045,2759.3,2759.2,7.24689929]
[1645868624632,1.34711741,2759.3,2759.2,7.24689929]
[1645868627568,0.43240045,2759.3,2759.2,7.24689929]
[1645868628572,0.91471696,2759.4,2759.2,7.24689929]
[1645868628771,0.91471696,2759.8,2759.2,7.24689929]
[1645868629369,0.91471696,2759.9,2759.2,7.24689929]
[1645868629769,0.91471696,2759.9,2759.7,1.09266908]
[1645868630025,1.21471696,2759.9,2759.7,1.09266908]
[1645868630218,0.91471696,2759.9,2759.7,1.09266908]
[1645868631325,0.91471696,2759.9,2759.3,0.1449]
[1645868632520,0.91471696,2759.9,2759.5,1.13499518]
[1645868634467,1.21471696,2760.0,2759.5,1.13499518]
[1645868634669,0.91471696,2759.9,2759.5,1.13499518]
[1645868635069,1.3708107,2760.1,2759.5,1.13499518]
[1645868635070,0.3,2760.0,2759.5,1.13499518]
[1645868635270,0.91471696,2760.2,2759.6,3.5]
[1645868635472,0.91471696,2760.2,2759.7,0.3636]
[1645868635670,0.02102166,2760.3,2759.9,0.3636]
[1645868635871,0.01681739,2760.3,2759.9,0.3636]
[1645868636071,0.91471696,2760.5,2759.9,0.3636]
[1645868636270,0.00420452,2760.3,2759.9,0.3636]
[1645868636473,0.00420452,2760.3,2760.2,1.32851991]
[1645868637376,0.00420469,2760.4,2760.2,1.32851991]
[1645868637614,0.00420469,2760.4,2759.7,12.9799]
[1645868637815,0.00420469,2760.4,2759.8,7.2482]
[1645868638427,0.91471696,2760.5,2759.8,7.2482]
[1645868638616,0.00420467,2760.3,2759.8,7.2482]
[1645868639220,0.91892163,2760.3,2759.8,7.2482]
[1645868639622,0.91471696,2760.3,2759.8,7.2482]
[1645868639823,0.91892158,2760.3,2759.8,7.2482]
[1645868640423,1.82528158,2760.3,2759.8,7.2482]